[Event "Titled Tuesday Blitz October 18 Late 2022"]
[White "Girsh, Daniel"]
[Black "Pranav, V"]
[WhiteFideId "30949190"]
[BlackFideId "25060783"]
[WhiteElo "2075"]
[BlackElo "2430"]
[Result "0-1"]
[Round "01"]
[TimeControl "180+1"]
[Date "2022.10.18"]
[WhiteClock "0:00:14"]
[BlackClock "0:00:23"]

1. e4 {[%clk 0:03:00]}  c5 {[%clk 0:02:59]} 2. Nf3 {[%clk 0:03:00]}  d6 {[%clk 0:02:59]} 3. d4 {[%clk 0:03:01]}  cxd4 {[%clk 0:03:00]} 4. Nxd4 {[%clk 0:03:01]}  Nf6 {[%clk 0:03:01]} 5. Nc3 {[%clk 0:03:01]}  a6 {[%clk 0:03:01]} 6. Be2 {[%clk 0:03:02]}  e5 {[%clk 0:03:01]} 7. Nb3 {[%clk 0:03:02]}  Be7 {[%clk 0:03:00]} 8. O-O {[%clk 0:03:02]}  O-O {[%clk 0:03:01]} 9. Be3 {[%clk 0:03:03]}  Nc6 {[%clk 0:03:00]} 10. Qd2 {[%clk 0:02:59]}  Be6 {[%clk 0:02:58]} 11. Rad1 {[%clk 0:02:56]}  Rc8 {[%clk 0:02:59]} 12. Kh1 {[%clk 0:02:48]}  b5 {[%clk 0:02:53]} 13. a3 {[%clk 0:02:48]}  b4 {[%clk 0:02:47]} 14. axb4 {[%clk 0:02:48]}  Nxb4 {[%clk 0:02:48]} 15. f4 {[%clk 0:02:45]}  exf4 {[%clk 0:02:41]} 16. Bxf4 {[%clk 0:02:46]}  d5 {[%clk 0:02:42]} 17. e5 {[%clk 0:02:45]}  Ne4 {[%clk 0:02:41]} 18. Nxe4 {[%clk 0:02:32]}  dxe4 {[%clk 0:02:41]} 19. Nd4 {[%clk 0:02:32]}  Qb6 {[%clk 0:02:24]} 20. c3 {[%clk 0:02:27]}  Nd5 {[%clk 0:02:21]} 21. Nxe6 {[%clk 0:02:01]}  fxe6 {[%clk 0:02:20]} 22. Bg4 {[%clk 0:02:02]}  e3 {[%clk 0:01:43]} 23. Qd4 {[%clk 0:01:37]}  Bc5 {[%clk 0:01:39]} 24. Qe4 {[%clk 0:01:28]}  Rce8 {[%clk 0:01:33]} 25. Bg3 {[%clk 0:01:18]}  a5 {[%clk 0:01:16]} 26. c4 {[%clk 0:01:14]}  Nc7 {[%clk 0:01:14]} 27. Bh5 {[%clk 0:01:01]}  Rxf1+ {[%clk 0:01:07]} 28. Rxf1 {[%clk 0:01:00]}  Rf8 {[%clk 0:01:08]} 29. Rxf8+ {[%clk 0:00:56]}  Bxf8 {[%clk 0:01:09]} 30. Qf3 {[%clk 0:00:55]}  g6 {[%clk 0:01:07]} 31. Bg4 {[%clk 0:00:46]}  Qxb2 {[%clk 0:00:51]} 32. Qxe3 {[%clk 0:00:45]}  a4 {[%clk 0:00:51]} 33. Qa7 {[%clk 0:00:20]}  a3 {[%clk 0:00:42]} 34. h4 {[%clk 0:00:14]}  a2 {[%clk 0:00:36]} 35. Qxc7 {[%clk 0:00:15]}  a1=Q+ {[%clk 0:00:35]} 36. Kh2 {[%clk 0:00:16]}  Qbb1 {[%clk 0:00:25]} 37. Bxe6+ {[%clk 0:00:16]}  Kh8 {[%clk 0:00:25]} 38. Kh3 {[%clk 0:00:15]}  Qh1+ {[%clk 0:00:26]} 39. Kg4 {[%clk 0:00:15]}  Qd4+ {[%clk 0:00:25]} 40. Bf4 {[%clk 0:00:14]}  Qxg2# {[%clk 0:00:23]} 0-1


[Site "https://www.chess.com"]

[Event "Titled Tuesday Blitz October 18 Late 2022"]
[White "Goltsev, Dmitry"]
[Black "Torres Boch, Jose Francisco"]
[WhiteFideId "24176710"]
[BlackFideId "2278383"]
[WhiteElo "2257"]
[BlackElo "2073"]
[Result "1-0"]
[Round "01"]
[TimeControl "180+1"]
[Date "2022.10.19"]
[WhiteClock "0:02:31"]
[BlackClock "0:01:31"]

1. e4 {[%clk 0:02:57]}  e5 {[%clk 0:02:55]} 2. Nf3 {[%clk 0:02:56]}  Nc6 {[%clk 0:02:56]} 3. Bb5 {[%clk 0:02:53]}  a6 {[%clk 0:02:53]} 4. Ba4 {[%clk 0:02:53]}  Nf6 {[%clk 0:02:53]} 5. O-O {[%clk 0:02:51]}  Be7 {[%clk 0:02:53]} 6. Re1 {[%clk 0:02:51]}  b5 {[%clk 0:02:54]} 7. Bb3 {[%clk 0:02:44]}  d6 {[%clk 0:02:55]} 8. c3 {[%clk 0:02:43]}  O-O {[%clk 0:02:53]} 9. h3 {[%clk 0:02:44]}  Nb8 {[%clk 0:02:52]} 10. d4 {[%clk 0:02:44]}  Nbd7 {[%clk 0:02:52]} 11. Nbd2 {[%clk 0:02:44]}  Bb7 {[%clk 0:02:52]} 12. Qe2 {[%clk 0:02:42]}  c5 {[%clk 0:01:56]} 13. d5 {[%clk 0:02:33]}  c4 {[%clk 0:01:56]} 14. Bc2 {[%clk 0:02:33]}  Nc5 {[%clk 0:01:56]} 15. Nf1 {[%clk 0:02:33]}  Nfd7 {[%clk 0:01:50]} 16. Ng3 {[%clk 0:02:32]}  g6 {[%clk 0:01:50]} 17. Bh6 {[%clk 0:02:32]}  Re8 {[%clk 0:01:49]} 18. Nh2 {[%clk 0:02:32]}  Bg5 {[%clk 0:01:48]} 19. Ng4 {[%clk 0:02:30]}  Bxh6 {[%clk 0:01:34]} 20. Nxh6+ {[%clk 0:02:31]}  Kh8 {[%clk 0:01:31]} 21. Nxf7+ {[%clk 0:02:31]} 1-0


[Site "https://www.chess.com"]

[Event "Titled Tuesday Blitz October 18 Late 2022"]
[White "Graif, William"]
[Black "Melkumyan, Hrant"]
[WhiteFideId "2609835"]
[BlackFideId "13302485"]
[WhiteElo "2205"]
[BlackElo "2604"]
[Result "0-1"]
[Round "01"]
[TimeControl "180+1"]
[Date "2022.10.18"]
[WhiteClock "0:00:03"]
[BlackClock "0:00:47"]

1. d4 {[%clk 0:02:50]}  Nf6 {[%clk 0:02:58]} 2. Nc3 {[%clk 0:02:49]}  g6 {[%clk 0:02:59]} 3. e4 {[%clk 0:02:48]}  d6 {[%clk 0:02:59]} 4. Bg5 {[%clk 0:02:39]}  Bg7 {[%clk 0:02:59]} 5. e5 {[%clk 0:02:39]}  Nfd7 {[%clk 0:02:55]} 6. exd6 {[%clk 0:02:37]}  cxd6 {[%clk 0:02:55]} 7. Qd2 {[%clk 0:02:38]}  Nc6 {[%clk 0:02:53]} 8. O-O-O {[%clk 0:02:05]}  Nxd4 {[%clk 0:02:45]} 9. Nd5 {[%clk 0:01:54]}  Nc6 {[%clk 0:02:39]} 10. Bb5 {[%clk 0:01:17]}  f6 {[%clk 0:02:31]} 11. Bh6 {[%clk 0:01:09]}  Bxh6 {[%clk 0:02:24]} 12. Qxh6 {[%clk 0:01:09]}  Kf7 {[%clk 0:02:25]} 13. Nf3 {[%clk 0:00:55]}  Nde5 {[%clk 0:02:17]} 14. Rhe1 {[%clk 0:00:44]}  Bf5 {[%clk 0:01:48]} 15. Ne3 {[%clk 0:00:28]}  Be6 {[%clk 0:01:40]} 16. Nxe5+ {[%clk 0:00:25]}  Nxe5 {[%clk 0:01:40]} 17. f4 {[%clk 0:00:23]}  Qa5 {[%clk 0:01:29]} 18. fxe5 {[%clk 0:00:19]}  Qxb5 {[%clk 0:01:30]} 19. exf6 {[%clk 0:00:18]}  exf6 {[%clk 0:01:31]} 20. Rxd6 {[%clk 0:00:18]}  Rae8 {[%clk 0:01:31]} 21. Red1 {[%clk 0:00:16]}  Qe5 {[%clk 0:01:15]} 22. Kb1 {[%clk 0:00:14]}  Qxe3 {[%clk 0:00:57]} 23. Qxe3 {[%clk 0:00:13]}  Bxa2+ {[%clk 0:00:58]} 24. Kxa2 {[%clk 0:00:14]}  Rxe3 {[%clk 0:00:58]} 25. Rd7+ {[%clk 0:00:14]}  Re7 {[%clk 0:00:59]} 26. Rxe7+ {[%clk 0:00:12]}  Kxe7 {[%clk 0:00:59]} 27. Re1+ {[%clk 0:00:12]}  Kf7 {[%clk 0:00:59]} 28. Rd1 {[%clk 0:00:10]}  Re8 {[%clk 0:01:00]} 29. Rd2 {[%clk 0:00:09]}  f5 {[%clk 0:00:59]} 30. Kb3 {[%clk 0:00:10]}  Kf6 {[%clk 0:00:58]} 31. Kc4 {[%clk 0:00:10]}  f4 {[%clk 0:00:55]} 32. Kc5 {[%clk 0:00:09]}  Re5+ {[%clk 0:00:50]} 33. Kd6 {[%clk 0:00:08]}  g5 {[%clk 0:00:49]} 34. Kc7 {[%clk 0:00:08]}  Re7+ {[%clk 0:00:47]} 35. Kb8 {[%clk 0:00:09]}  a6 {[%clk 0:00:45]} 36. h3 {[%clk 0:00:08]}  h5 {[%clk 0:00:44]} 37. Rf2 {[%clk 0:00:03]}  Kf5 {[%clk 0:00:43]} 38. Rd2 {[%clk 0:00:02]}  g4 {[%clk 0:00:43]} 39. Rd5+ {[%clk 0:00:03]}  Re5 {[%clk 0:00:43]} 40. Rxe5+ {[%clk 0:00:02]}  Kxe5 {[%clk 0:00:44]} 41. hxg4 {[%clk 0:00:02]}  hxg4 {[%clk 0:00:44]} 42. Kxb7 {[%clk 0:00:03]}  f3 {[%clk 0:00:44]} 43. gxf3 {[%clk 0:00:03]}  gxf3 {[%clk 0:00:45]} 44. Kxa6 {[%clk 0:00:03]}  f2 {[%clk 0:00:46]} 45. b4 {[%clk 0:00:04]}  f1=Q+ {[%clk 0:00:47]} 46. b5 {[%clk 0:00:04]}  Kd6 {[%clk 0:00:47]} 47. Ka5 {[%clk 0:00:04]}  Kc5 {[%clk 0:00:47]} 48. c4 {[%clk 0:00:03]}  Qa1# {[%clk 0:00:47]} 0-1


[Site "https://www.chess.com"]

[Event "Titled Tuesday Blitz October 18 Late 2022"]
[White "Gubajdullin, Alexei"]
[Black "Wiegmann, Sascha"]
[WhiteFideId "4141202"]
[BlackFideId "4682041"]
[WhiteElo "2200"]
[BlackElo "2270"]
[Result "0-1"]
[Round "01"]
[TimeControl "180+1"]
[Date "2022.10.19"]
[WhiteClock "0:00:27"]
[BlackClock "0:00:18"]

1. d4 {[%clk 0:02:58]}  Nf6 {[%clk 0:02:59]} 2. Nf3 {[%clk 0:02:57]}  g6 {[%clk 0:02:59]} 3. Bf4 {[%clk 0:02:57]}  Bg7 {[%clk 0:02:59]} 4. e3 {[%clk 0:02:57]}  d6 {[%clk 0:03:00]} 5. Be2 {[%clk 0:02:57]}  O-O {[%clk 0:03:00]} 6. O-O {[%clk 0:02:57]}  Nbd7 {[%clk 0:03:01]} 7. h3 {[%clk 0:02:57]}  c5 {[%clk 0:03:01]} 8. c3 {[%clk 0:02:57]}  a6 {[%clk 0:03:01]} 9. a4 {[%clk 0:02:55]}  b6 {[%clk 0:03:01]} 10. Bh2 {[%clk 0:02:55]}  Bb7 {[%clk 0:03:02]} 11. Qb3 {[%clk 0:02:55]}  Ra7 {[%clk 0:03:02]} 12. Rd1 {[%clk 0:02:54]}  Qa8 {[%clk 0:03:02]} 13. Na3 {[%clk 0:02:37]}  Rb8 {[%clk 0:02:04]} 14. Nc4 {[%clk 0:02:31]}  Bd5 {[%clk 0:02:03]} 15. Qc2 {[%clk 0:02:29]}  Ne4 {[%clk 0:01:58]} 16. Ncd2 {[%clk 0:02:20]}  Nxd2 {[%clk 0:01:54]} 17. Qxd2 {[%clk 0:02:19]}  Be4 {[%clk 0:01:23]} 18. c4 {[%clk 0:02:03]}  Nf6 {[%clk 0:00:59]} 19. d5 {[%clk 0:01:57]}  Bxf3 {[%clk 0:00:53]} 20. Bxf3 {[%clk 0:01:54]}  b5 {[%clk 0:00:53]} 21. b3 {[%clk 0:01:44]}  bxc4 {[%clk 0:00:52]} 22. bxc4 {[%clk 0:01:43]}  Rb4 {[%clk 0:00:53]} 23. Qc2 {[%clk 0:01:34]}  Rab7 {[%clk 0:00:50]} 24. Ra2 {[%clk 0:01:33]}  a5 {[%clk 0:00:45]} 25. Bf4 {[%clk 0:01:17]}  Qb8 {[%clk 0:00:40]} 26. e4 {[%clk 0:01:04]}  Nd7 {[%clk 0:00:39]} 27. Bd2 {[%clk 0:01:03]}  Rb2 {[%clk 0:00:32]} 28. Rxb2 {[%clk 0:01:03]}  Rxb2 {[%clk 0:00:33]} 29. Qc1 {[%clk 0:01:03]}  Qb3 {[%clk 0:00:30]} 30. Bxa5 {[%clk 0:00:56]}  Qxa4 {[%clk 0:00:29]} 31. Be1 {[%clk 0:00:48]}  Rc2 {[%clk 0:00:25]} 32. Qg5 {[%clk 0:00:39]}  Bf6 {[%clk 0:00:23]} 33. Qh6 {[%clk 0:00:38]}  Qxc4 {[%clk 0:00:20]} 34. Rb1 {[%clk 0:00:38]}  Rb2 {[%clk 0:00:20]} 35. Ra1 {[%clk 0:00:36]}  Rb8 {[%clk 0:00:19]} 36. Ra8 {[%clk 0:00:34]}  Rxa8 {[%clk 0:00:18]} 37. Bd2 {[%clk 0:00:30]}  Ne5 {[%clk 0:00:18]} 38. Bg4 {[%clk 0:00:28]}  Nxg4 {[%clk 0:00:18]} 39. hxg4 {[%clk 0:00:28]}  Ra1+ {[%clk 0:00:19]} 40. Kh2 {[%clk 0:00:28]}  Qxe4 {[%clk 0:00:19]} 41. g5 {[%clk 0:00:27]}  Be5+ {[%clk 0:00:18]} 0-1


[Site "https://www.chess.com"]

[Event "Titled Tuesday Blitz October 18 Late 2022"]
[White "Gupta, Abhijeet"]
[Black "Taboas Rodriguez, Daniel"]
[WhiteFideId "5010608"]
[BlackFideId "2208466"]
[WhiteElo "2549"]
[BlackElo "2429"]
[Result "1-0"]
[Round "01"]
[TimeControl "180+1"]
[Date "2022.10.18"]
[WhiteClock "0:00:18"]
[BlackClock "0:00:07"]

1. d4 {[%clk 0:03:00]}  Nf6 {[%clk 0:02:59]} 2. Nf3 {[%clk 0:03:00]}  g6 {[%clk 0:02:59]} 3. Nc3 {[%clk 0:02:57]}  d5 {[%clk 0:02:59]} 4. Bf4 {[%clk 0:02:56]}  Bf5 {[%clk 0:02:56]} 5. h3 {[%clk 0:02:52]}  Bg7 {[%clk 0:02:53]} 6. Nb5 {[%clk 0:02:48]}  Na6 {[%clk 0:02:52]} 7. e3 {[%clk 0:02:48]}  c6 {[%clk 0:02:49]} 8. Na3 {[%clk 0:02:47]}  Nc7 {[%clk 0:02:46]} 9. Bd3 {[%clk 0:02:45]}  Bxd3 {[%clk 0:02:45]} 10. Qxd3 {[%clk 0:02:46]}  Ne4 {[%clk 0:02:37]} 11. O-O {[%clk 0:02:45]}  O-O {[%clk 0:02:37]} 12. c4 {[%clk 0:02:44]}  e6 {[%clk 0:02:36]} 13. Rac1 {[%clk 0:02:41]}  Rc8 {[%clk 0:02:34]} 14. b4 {[%clk 0:02:40]}  a6 {[%clk 0:02:32]} 15. Nd2 {[%clk 0:02:26]}  Nxd2 {[%clk 0:02:25]} 16. Qxd2 {[%clk 0:02:27]}  Ne8 {[%clk 0:02:26]} 17. cxd5 {[%clk 0:02:23]}  exd5 {[%clk 0:02:24]} 18. Nb1 {[%clk 0:02:20]}  Nd6 {[%clk 0:02:25]} 19. Bxd6 {[%clk 0:02:19]}  Qxd6 {[%clk 0:02:25]} 20. a4 {[%clk 0:02:19]}  f5 {[%clk 0:02:21]} 21. g3 {[%clk 0:02:16]}  h5 {[%clk 0:02:13]} 22. h4 {[%clk 0:02:14]}  Kh7 {[%clk 0:02:13]} 23. Rc5 {[%clk 0:02:07]}  Rce8 {[%clk 0:02:02]} 24. b5 {[%clk 0:02:05]}  axb5 {[%clk 0:02:03]} 25. axb5 {[%clk 0:02:05]}  f4 {[%clk 0:01:57]} 26. exf4 {[%clk 0:02:03]}  Re4 {[%clk 0:01:57]} 27. bxc6 {[%clk 0:01:57]}  Bxd4 {[%clk 0:01:46]} 28. Rb5 {[%clk 0:01:50]}  bxc6 {[%clk 0:01:41]} 29. Rb7+ {[%clk 0:01:51]}  Kg8 {[%clk 0:01:39]} 30. Nc3 {[%clk 0:01:48]}  Bxc3 {[%clk 0:01:29]} 31. Qxc3 {[%clk 0:01:49]}  Qf6 {[%clk 0:01:29]} 32. Qa5 {[%clk 0:01:27]}  Re7 {[%clk 0:01:22]} 33. Rxe7 {[%clk 0:01:18]}  Qxe7 {[%clk 0:01:21]} 34. Re1 {[%clk 0:01:18]}  Qd6 {[%clk 0:01:14]} 35. Qb6 {[%clk 0:01:13]}  d4 {[%clk 0:01:11]} 36. Qb3+ {[%clk 0:01:03]}  Kh8 {[%clk 0:00:59]} 37. Re6 {[%clk 0:01:02]}  Rb8 {[%clk 0:00:28]} 38. Rxd6 {[%clk 0:00:55]}  Rxb3 {[%clk 0:00:26]} 39. Rxd4 {[%clk 0:00:56]}  Kg7 {[%clk 0:00:24]} 40. Rd7+ {[%clk 0:00:55]}  Kh6 {[%clk 0:00:25]} 41. Rd6 {[%clk 0:00:54]}  c5 {[%clk 0:00:25]} 42. f5 {[%clk 0:00:54]}  c4 {[%clk 0:00:25]} 43. Rxg6+ {[%clk 0:00:54]}  Kh7 {[%clk 0:00:26]} 44. Rc6 {[%clk 0:00:55]}  c3 {[%clk 0:00:26]} 45. Kg2 {[%clk 0:00:55]}  Kg7 {[%clk 0:00:26]} 46. Kf3 {[%clk 0:00:51]}  c2+ {[%clk 0:00:26]} 47. Kf4 {[%clk 0:00:51]}  Rb2 {[%clk 0:00:18]} 48. Kg5 {[%clk 0:00:50]}  Kf7 {[%clk 0:00:18]} 49. Rc7+ {[%clk 0:00:50]}  Ke8 {[%clk 0:00:17]} 50. Kxh5 {[%clk 0:00:49]}  Kd8 {[%clk 0:00:18]} 51. Rc3 {[%clk 0:00:49]}  Kd7 {[%clk 0:00:19]} 52. Kg6 {[%clk 0:00:49]}  Rb6+ {[%clk 0:00:18]} 53. f6 {[%clk 0:00:42]}  Rc6 {[%clk 0:00:18]} 54. Rxc6 {[%clk 0:00:36]}  Kxc6 {[%clk 0:00:19]} 55. f7 {[%clk 0:00:37]}  c1=Q {[%clk 0:00:20]} 56. f8=Q {[%clk 0:00:37]}  Qc2+ {[%clk 0:00:16]} 57. Qf5 {[%clk 0:00:37]}  Qe2 {[%clk 0:00:15]} 58. h5 {[%clk 0:00:27]}  Qe8+ {[%clk 0:00:14]} 59. Kg5 {[%clk 0:00:27]}  Kb7 {[%clk 0:00:10]} 60. h6 {[%clk 0:00:27]}  Qg8+ {[%clk 0:00:10]} 61. Kh5 {[%clk 0:00:26]}  Qe8+ {[%clk 0:00:10]} 62. Kh4 {[%clk 0:00:21]}  Qe7+ {[%clk 0:00:10]} 63. Qg5 {[%clk 0:00:21]}  Qe4+ {[%clk 0:00:10]} 64. f4 {[%clk 0:00:18]}  Qh1+ {[%clk 0:00:09]} 65. Kg4 {[%clk 0:00:18]}  Qd1+ {[%clk 0:00:10]} 66. Kf5 {[%clk 0:00:18]}  Qd7+ {[%clk 0:00:10]} 67. Kg6 {[%clk 0:00:18]}  Qe6+ {[%clk 0:00:09]} 68. Qf6 {[%clk 0:00:17]}  Qg4+ {[%clk 0:00:09]} 69. Kh7 {[%clk 0:00:17]}  Ka8 {[%clk 0:00:07]} 70. Qh8+ {[%clk 0:00:17]}  Kb7 {[%clk 0:00:07]} 71. Qg7+ {[%clk 0:00:18]} 1-0


[Site "https://www.chess.com"]

[Event "Titled Tuesday Blitz October 18 Late 2022"]
[White "Hamitevici, Vladimir"]
[Black "Marin Masis, Jose Esteban"]
[WhiteFideId "13902393"]
[BlackFideId "6508146"]
[WhiteElo "2401"]
[BlackElo "1838"]
[Result "1-0"]
[Round "01"]
[TimeControl "180+1"]
[Date "2022.10.19"]
[WhiteClock "0:01:23"]
[BlackClock "0:01:17"]

1. e4 {[%clk 0:02:57]}  c5 {[%clk 0:02:59]} 2. Nf3 {[%clk 0:02:57]}  Nc6 {[%clk 0:02:58]} 3. Nc3 {[%clk 0:02:55]}  Nf6 {[%clk 0:02:57]} 4. Bb5 {[%clk 0:02:52]}  Nd4 {[%clk 0:02:50]} 5. e5 {[%clk 0:02:47]}  Nxb5 {[%clk 0:02:47]} 6. Nxb5 {[%clk 0:02:44]}  Nd5 {[%clk 0:02:45]} 7. O-O {[%clk 0:02:41]}  g6 {[%clk 0:02:45]} 8. c4 {[%clk 0:02:39]}  Nc7 {[%clk 0:02:31]} 9. d4 {[%clk 0:02:32]}  Nxb5 {[%clk 0:02:28]} 10. cxb5 {[%clk 0:02:31]}  cxd4 {[%clk 0:02:27]} 11. Qxd4 {[%clk 0:02:30]}  Bg7 {[%clk 0:02:27]} 12. Bg5 {[%clk 0:02:27]}  O-O {[%clk 0:02:26]} 13. Qh4 {[%clk 0:02:12]}  Re8 {[%clk 0:02:22]} 14. Rfd1 {[%clk 0:02:07]}  Qb6 {[%clk 0:02:16]} 15. Bxe7 {[%clk 0:02:04]}  Qxb5 {[%clk 0:02:16]} 16. Bf6 {[%clk 0:02:03]}  b6 {[%clk 0:02:06]} 17. Bxg7 {[%clk 0:01:51]}  Kxg7 {[%clk 0:02:05]} 18. Qf6+ {[%clk 0:01:51]}  Kg8 {[%clk 0:02:05]} 19. Ng5 {[%clk 0:01:50]}  Rf8 {[%clk 0:02:03]} 20. h4 {[%clk 0:01:41]}  Bb7 {[%clk 0:01:54]} 21. Rd6 {[%clk 0:01:40]}  Rae8 {[%clk 0:01:48]} 22. Re1 {[%clk 0:01:31]}  h6 {[%clk 0:01:30]} 23. h5 {[%clk 0:01:25]}  hxg5 {[%clk 0:01:17]} 24. h6 {[%clk 0:01:23]} 1-0


[Site "https://www.chess.com"]

[Event "Titled Tuesday Blitz October 18 Late 2022"]
[White "Hansen, Eric"]
[Black "Kunin, Vitaly"]
[WhiteFideId "2606771"]
[BlackFideId "4128737"]
[WhiteElo "2568"]
[BlackElo "2417"]
[Result "0-1"]
[Round "01"]
[TimeControl "180+1"]
[Date "2022.10.18"]
[WhiteClock "0:00:01"]
[BlackClock "0:00:02"]

1. d4 {[%clk 0:02:58]}  d6 {[%clk 0:02:59]} 2. e4 {[%clk 0:02:51]}  Nf6 {[%clk 0:02:58]} 3. Nc3 {[%clk 0:02:52]}  e5 {[%clk 0:02:58]} 4. Nge2 {[%clk 0:02:49]}  Be7 {[%clk 0:02:49]} 5. h3 {[%clk 0:02:49]}  h5 {[%clk 0:02:48]} 6. g3 {[%clk 0:02:48]}  c6 {[%clk 0:02:46]} 7. Bg2 {[%clk 0:02:48]}  Nbd7 {[%clk 0:02:45]} 8. a4 {[%clk 0:02:48]}  Qc7 {[%clk 0:02:42]} 9. O-O {[%clk 0:02:48]}  O-O {[%clk 0:02:41]} 10. f4 {[%clk 0:02:46]}  Re8 {[%clk 0:02:40]} 11. Be3 {[%clk 0:02:39]}  Bf8 {[%clk 0:02:28]} 12. Kh1 {[%clk 0:02:29]}  b6 {[%clk 0:02:16]} 13. fxe5 {[%clk 0:02:00]}  dxe5 {[%clk 0:02:15]} 14. d5 {[%clk 0:02:00]}  Bb7 {[%clk 0:02:12]} 15. dxc6 {[%clk 0:01:55]}  Bxc6 {[%clk 0:02:11]} 16. Nb5 {[%clk 0:01:50]}  Bxb5 {[%clk 0:02:02]} 17. axb5 {[%clk 0:01:50]}  Bc5 {[%clk 0:01:55]} 18. Bg5 {[%clk 0:01:47]}  Nh7 {[%clk 0:01:51]} 19. Bd2 {[%clk 0:01:40]}  Rad8 {[%clk 0:01:47]} 20. Nc1 {[%clk 0:01:19]}  Ndf6 {[%clk 0:01:30]} 21. Nd3 {[%clk 0:01:19]}  Bd4 {[%clk 0:01:26]} 22. Ra3 {[%clk 0:01:14]}  Nf8 {[%clk 0:01:10]} 23. c3 {[%clk 0:00:54]}  Bc5 {[%clk 0:00:52]} 24. Nxc5 {[%clk 0:00:54]}  Qxc5 {[%clk 0:00:46]} 25. Qe2 {[%clk 0:00:54]}  Rd7 {[%clk 0:00:37]} 26. Be3 {[%clk 0:00:54]}  Qd6 {[%clk 0:00:36]} 27. Raa1 {[%clk 0:00:45]}  Red8 {[%clk 0:00:32]} 28. Bf3 {[%clk 0:00:38]}  Ne6 {[%clk 0:00:23]} 29. Kh2 {[%clk 0:00:28]}  Qc7 {[%clk 0:00:16]} 30. Rf2 {[%clk 0:00:24]}  g6 {[%clk 0:00:14]} 31. Raf1 {[%clk 0:00:23]}  Nh7 {[%clk 0:00:14]} 32. Bg2 {[%clk 0:00:20]}  Neg5 {[%clk 0:00:11]} 33. h4 {[%clk 0:00:16]}  Ne6 {[%clk 0:00:11]} 34. Bh3 {[%clk 0:00:17]}  Re8 {[%clk 0:00:09]} 35. Rf3 {[%clk 0:00:11]}  Nhf8 {[%clk 0:00:08]} 36. Rf6 {[%clk 0:00:10]}  Nh7 {[%clk 0:00:06]} 37. R6f2 {[%clk 0:00:07]}  Nhf8 {[%clk 0:00:05]} 38. Qf3 {[%clk 0:00:08]}  Rde7 {[%clk 0:00:04]} 39. Bh6 {[%clk 0:00:07]}  Nh7 {[%clk 0:00:03]} 40. Bxe6 {[%clk 0:00:05]}  fxe6 {[%clk 0:00:01]} 41. Qe2 {[%clk 0:00:04]}  Qd7 {[%clk 0:00:01]} 42. Rd1 {[%clk 0:00:04]}  Qc7 {[%clk 0:00:01]} 43. Rf3 {[%clk 0:00:04]}  Rf7 {[%clk 0:00:01]} 44. Rxf7 {[%clk 0:00:04]}  Qxf7 {[%clk 0:00:01]} 45. Rf1 {[%clk 0:00:04]}  Qd7 {[%clk 0:00:01]} 46. Qf3 {[%clk 0:00:04]}  Qe7 {[%clk 0:00:01]} 47. Rf2 {[%clk 0:00:04]}  Qd7 {[%clk 0:00:01]} 48. c4 {[%clk 0:00:04]}  Qe7 {[%clk 0:00:02]} 49. b3 {[%clk 0:00:05]}  Qd7 {[%clk 0:00:02]} 50. Qc3 {[%clk 0:00:05]}  Qc7 {[%clk 0:00:02]} 51. Rd2 {[%clk 0:00:04]}  Nf6 {[%clk 0:00:01]} 52. Be3 {[%clk 0:00:01]}  Ng4+ {[%clk 0:00:02]} 53. Kh3 {[%clk 0:00:01]}  Rf8 {[%clk 0:00:02]} 54. Qd3 {[%clk 0:00:01]}  Qf7 {[%clk 0:00:02]} 0-1


[Site "https://www.chess.com"]

[Event "Titled Tuesday Blitz October 18 Late 2022"]
[White "Hirneise, Jens"]
[Black "Eisen, Zane"]
[WhiteFideId "24614734"]
[BlackFideId "2098750"]
[WhiteElo "2344"]
[BlackElo "2038"]
[Result "1-0"]
[Round "01"]
[TimeControl "180+1"]
[Date "2022.10.19"]
[WhiteClock "0:00:38"]
[BlackClock "0:00:13"]

1. e4 {[%clk 0:03:00]}  c5 {[%clk 0:02:58]} 2. Nc3 {[%clk 0:02:46]}  Nc6 {[%clk 0:02:55]} 3. Bb5 {[%clk 0:02:44]}  g6 {[%clk 0:02:53]} 4. Bxc6 {[%clk 0:02:37]}  bxc6 {[%clk 0:02:49]} 5. d4 {[%clk 0:02:29]}  Bg7 {[%clk 0:02:10]} 6. Nge2 {[%clk 0:02:24]}  cxd4 {[%clk 0:02:08]} 7. Nxd4 {[%clk 0:02:23]}  Nf6 {[%clk 0:02:08]} 8. O-O {[%clk 0:02:21]}  O-O {[%clk 0:02:08]} 9. e5 {[%clk 0:02:14]}  Nd5 {[%clk 0:02:07]} 10. Nxd5 {[%clk 0:02:13]}  cxd5 {[%clk 0:02:08]} 11. f4 {[%clk 0:02:13]}  d6 {[%clk 0:02:06]} 12. exd6 {[%clk 0:02:08]}  Qxd6 {[%clk 0:02:05]} 13. c3 {[%clk 0:01:59]}  Rb8 {[%clk 0:01:55]} 14. Re1 {[%clk 0:01:53]}  a5 {[%clk 0:01:49]} 15. a4 {[%clk 0:01:47]}  Ba6 {[%clk 0:01:45]} 16. Kh1 {[%clk 0:01:35]}  Rfe8 {[%clk 0:01:45]} 17. Nf3 {[%clk 0:01:34]}  Bh6 {[%clk 0:01:37]} 18. Ne5 {[%clk 0:01:32]}  Rbd8 {[%clk 0:01:29]} 19. Be3 {[%clk 0:01:29]}  e6 {[%clk 0:01:04]} 20. Qd2 {[%clk 0:01:26]}  Bg7 {[%clk 0:01:03]} 21. Bd4 {[%clk 0:01:25]}  Rb8 {[%clk 0:01:00]} 22. Re3 {[%clk 0:01:21]}  Rbd8 {[%clk 0:00:39]} 23. Rae1 {[%clk 0:01:19]}  Bc8 {[%clk 0:00:30]} 24. Qf2 {[%clk 0:01:13]}  Bd7 {[%clk 0:00:30]} 25. Rh3 {[%clk 0:01:10]}  Bxa4 {[%clk 0:00:26]} 26. Qh4 {[%clk 0:01:02]}  h6 {[%clk 0:00:23]} 27. Ng4 {[%clk 0:00:49]}  h5 {[%clk 0:00:15]} 28. Bxg7 {[%clk 0:00:44]}  Kxg7 {[%clk 0:00:14]} 29. Qf6+ {[%clk 0:00:39]}  Kh7 {[%clk 0:00:13]} 30. Rxh5+ {[%clk 0:00:37]}  gxh5 {[%clk 0:00:12]} 31. Qh6+ {[%clk 0:00:37]}  Kg8 {[%clk 0:00:13]} 32. Nf6# {[%clk 0:00:38]} 1-0


[Site "https://www.chess.com"]

[Event "Titled Tuesday Blitz October 18 Late 2022"]
[White "Huber, Benedikt"]
[Black "Har-Zvi, Ronen"]
[WhiteFideId "12923583"]
[BlackFideId "2801485"]
[WhiteElo "2199"]
[BlackElo "2523"]
[Result "0-1"]
[Round "01"]
[TimeControl "180+1"]
[Date "2022.10.19"]
[WhiteClock "0:02:26"]
[BlackClock "0:02:23"]

1. d4 {[%clk 0:02:58]}  d5 {[%clk 0:02:59]} 2. Nc3 {[%clk 0:02:56]}  Nf6 {[%clk 0:02:58]} 3. Bf4 {[%clk 0:02:55]}  c5 {[%clk 0:02:58]} 4. e4 {[%clk 0:02:55]}  Nxe4 {[%clk 0:02:49]} 5. Nxe4 {[%clk 0:02:54]}  dxe4 {[%clk 0:02:49]} 6. dxc5 {[%clk 0:02:54]}  Qa5+ {[%clk 0:02:49]} 7. c3 {[%clk 0:02:54]}  Qxc5 {[%clk 0:02:50]} 8. Qa4+ {[%clk 0:02:55]}  Nc6 {[%clk 0:02:50]} 9. Qxe4 {[%clk 0:02:56]}  g6 {[%clk 0:02:48]} 10. Nf3 {[%clk 0:02:45]}  Bg7 {[%clk 0:02:47]} 11. Be2 {[%clk 0:02:41]}  Bxc3+ {[%clk 0:02:35]} 12. Kf1 {[%clk 0:02:30]}  Bxb2 {[%clk 0:02:35]} 13. Rd1 {[%clk 0:02:27]}  Bf5 {[%clk 0:02:29]} 14. Qa4 {[%clk 0:02:27]}  O-O {[%clk 0:02:28]} 15. h3 {[%clk 0:02:26]}  Bc2 {[%clk 0:02:23]} 0-1


[Site "https://www.chess.com"]